[Event "Titled Tuesday Blitz July 4 Early 2023"]
[White "Sowa, Ryan"]
[Black "Koshulyan, Egor A."]
[WhiteFideId "30901693"]
[BlackFideId "24237000"]
[WhiteElo "2567"]
[BlackElo "2684"]
[Result "1-0"]
[Round "10"]
[TimeControl "180+2"]
[Date "2023.07.04"]
[WhiteClock "0:00:20"]
[BlackClock "0:00:11"]
[Board "48"]

1. Nf3 {[%clk 0:02:56]}  d5 {[%clk 0:02:58]} 2. b3 {[%clk 0:02:55]}  Nf6 {[%clk 0:02:58]} 3. Bb2 {[%clk 0:02:55]}  c5 {[%clk 0:02:51]} 4. g3 {[%clk 0:02:55]}  Nc6 {[%clk 0:02:51]} 5. d4 {[%clk 0:02:55]}  cxd4 {[%clk 0:02:51]} 6. Nxd4 {[%clk 0:02:56]}  g6 {[%clk 0:02:51]} 7. Bg2 {[%clk 0:02:55]}  Bg7 {[%clk 0:02:51]} 8. O-O {[%clk 0:02:50]}  O-O {[%clk 0:02:51]} 9. Nxc6 {[%clk 0:02:43]}  bxc6 {[%clk 0:02:50]} 10. Nd2 {[%clk 0:02:44]}  Re8 {[%clk 0:02:48]} 11. c4 {[%clk 0:02:36]}  e5 {[%clk 0:02:47]} 12. cxd5 {[%clk 0:02:34]}  cxd5 {[%clk 0:02:48]} 13. Nf3 {[%clk 0:02:35]}  Qd6 {[%clk 0:02:42]} 14. Qd2 {[%clk 0:02:30]}  Ne4 {[%clk 0:02:40]} 15. Qe3 {[%clk 0:02:30]}  Bb7 {[%clk 0:02:32]} 16. Ng5 {[%clk 0:02:28]}  Nf6 {[%clk 0:02:19]} 17. Rac1 {[%clk 0:02:11]}  Rad8 {[%clk 0:02:00]} 18. Qxa7 {[%clk 0:02:09]}  Rd7 {[%clk 0:01:59]} 19. Qc5 {[%clk 0:02:04]}  Qa6 {[%clk 0:01:57]} 20. Nf3 {[%clk 0:01:31]}  Ne4 {[%clk 0:01:26]} 21. Qc2 {[%clk 0:01:29]}  Rde7 {[%clk 0:01:02]} 22. Rfd1 {[%clk 0:01:24]}  Ra8 {[%clk 0:00:59]} 23. a3 {[%clk 0:01:16]}  Qb5 {[%clk 0:00:58]} 24. b4 {[%clk 0:01:10]}  Ba6 {[%clk 0:00:54]} 25. Nd2 {[%clk 0:01:07]}  Nf6 {[%clk 0:00:47]} 26. e3 {[%clk 0:01:00]}  Bc8 {[%clk 0:00:24]} 27. Qc6 {[%clk 0:00:55]}  Qb8 {[%clk 0:00:23]} 28. Nb3 {[%clk 0:00:47]}  Bg4 {[%clk 0:00:22]} 29. Re1 {[%clk 0:00:48]}  e4 {[%clk 0:00:16]} 30. Qc2 {[%clk 0:00:47]}  Nd7 {[%clk 0:00:15]} 31. Bxg7 {[%clk 0:00:46]}  Kxg7 {[%clk 0:00:16]} 32. Qb2+ {[%clk 0:00:46]}  Ne5 {[%clk 0:00:16]} 33. Nd4 {[%clk 0:00:47]}  Kg8 {[%clk 0:00:16]} 34. Nc6 {[%clk 0:00:47]}  Nxc6 {[%clk 0:00:15]} 35. Rxc6 {[%clk 0:00:48]}  Qb5 {[%clk 0:00:13]} 36. Rec1 {[%clk 0:00:47]}  Rea7 {[%clk 0:00:14]} 37. Bf1 {[%clk 0:00:36]}  Qa4 {[%clk 0:00:13]} 38. R6c3 {[%clk 0:00:22]}  Qd7 {[%clk 0:00:10]} 39. b5 {[%clk 0:00:20]}  d4 {[%clk 0:00:11]} 40. exd4 {[%clk 0:00:21]}  Qxd4 {[%clk 0:00:12]} 41. Rc8+ {[%clk 0:00:21]}  Rxc8 {[%clk 0:00:09]} 42. Rxc8+ {[%clk 0:00:20]}  Bxc8 {[%clk 0:00:10]} 43. Qxd4 {[%clk 0:00:20]}  Rb7 {[%clk 0:00:11]} 1-0


[Site "https://www.chess.com"]

[Event "Titled Tuesday Blitz July 4 Early 2023"]
[White "Parpiev, Isaak"]
[Black "Akhmedinov, Satbek"]
[WhiteFideId "34281576"]
[BlackFideId "13714287"]
[WhiteElo "2565"]
[BlackElo "2680"]
[Result "1-0"]
[Round "10"]
[TimeControl "180+2"]
[Date "2023.07.04"]
[WhiteClock "0:00:19"]
[BlackClock "0:01:11"]
[Board "49"]

1. d4 {[%clk 0:02:52]}  Nf6 {[%clk 0:03:00]} 2. c4 {[%clk 0:02:51]}  e6 {[%clk 0:03:00]} 3. Nc3 {[%clk 0:02:52]}  Bb4 {[%clk 0:03:01]} 4. e3 {[%clk 0:02:53]}  O-O {[%clk 0:03:00]} 5. Bd3 {[%clk 0:02:53]}  c5 {[%clk 0:03:00]} 6. a3 {[%clk 0:02:52]}  Bxc3+ {[%clk 0:03:00]} 7. bxc3 {[%clk 0:02:53]}  d6 {[%clk 0:03:00]} 8. Ne2 {[%clk 0:02:53]}  Nc6 {[%clk 0:03:01]} 9. O-O {[%clk 0:02:53]}  b6 {[%clk 0:02:59]} 10. e4 {[%clk 0:02:52]}  e5 {[%clk 0:02:57]} 11. d5 {[%clk 0:02:50]}  Na5 {[%clk 0:02:57]} 12. Ng3 {[%clk 0:02:46]}  Ba6 {[%clk 0:02:57]} 13. Bg5 {[%clk 0:02:47]}  h6 {[%clk 0:02:51]} 14. Be3 {[%clk 0:02:21]}  Nxc4 {[%clk 0:02:49]} 15. Bc1 {[%clk 0:02:14]}  Qc8 {[%clk 0:02:49]} 16. Qe2 {[%clk 0:02:12]}  b5 {[%clk 0:02:47]} 17. a4 {[%clk 0:02:11]}  Nb6 {[%clk 0:02:34]} 18. axb5 {[%clk 0:02:10]}  Bb7 {[%clk 0:02:32]} 19. c4 {[%clk 0:02:11]}  Nbd7 {[%clk 0:02:26]} 20. Nf5 {[%clk 0:02:10]}  Qc7 {[%clk 0:02:23]} 21. Qf3 {[%clk 0:01:57]}  Kh7 {[%clk 0:02:18]} 22. Qh3 {[%clk 0:01:50]}  Ng8 {[%clk 0:02:18]} 23. Bc2 {[%clk 0:01:38]}  Ndf6 {[%clk 0:02:17]} 24. f4 {[%clk 0:01:36]}  Rfe8 {[%clk 0:02:11]} 25. fxe5 {[%clk 0:01:26]}  dxe5 {[%clk 0:02:11]} 26. Nxh6 {[%clk 0:01:15]}  gxh6 {[%clk 0:01:57]} 27. Rxf6 {[%clk 0:00:56]}  Nxf6 {[%clk 0:01:56]} 28. Qxh6+ {[%clk 0:00:57]}  Kg8 {[%clk 0:01:57]} 29. Qxf6 {[%clk 0:00:49]}  Qb6 {[%clk 0:01:55]} 30. Qh4 {[%clk 0:00:43]}  Qg6 {[%clk 0:01:43]} 31. Ra3 {[%clk 0:00:41]}  a6 {[%clk 0:01:31]} 32. Rg3 {[%clk 0:00:39]}  axb5 {[%clk 0:01:31]} 33. Rxg6+ {[%clk 0:00:38]}  fxg6 {[%clk 0:01:32]} 34. Qf6 {[%clk 0:00:24]}  Ra1 {[%clk 0:01:22]} 35. Qxg6+ {[%clk 0:00:24]}  Kf8 {[%clk 0:01:23]} 36. Kf2 {[%clk 0:00:21]}  Rxc1 {[%clk 0:01:18]} 37. Qh6+ {[%clk 0:00:21]}  Ke7 {[%clk 0:01:18]} 38. Qxc1 {[%clk 0:00:22]}  Rf8+ {[%clk 0:01:18]} 39. Kg1 {[%clk 0:00:22]}  bxc4 {[%clk 0:01:18]} 40. Qe3 {[%clk 0:00:21]}  Kd6 {[%clk 0:01:14]} 41. Qh6+ {[%clk 0:00:17]}  Ke7 {[%clk 0:01:13]} 42. Qe6+ {[%clk 0:00:17]}  Kd8 {[%clk 0:01:13]} 43. Qd6+ {[%clk 0:00:18]}  Ke8 {[%clk 0:01:11]} 44. Qxe5+ {[%clk 0:00:19]} 1-0


[Site "https://www.chess.com"]

[Event "Titled Tuesday Blitz July 4 Early 2023"]
[White "Shubenkova, Veronika"]
[Black "Kamalidenova, Meruert"]
[WhiteFideId "44124040"]
[BlackFideId "13712802"]
[WhiteElo "2527"]
[BlackElo "2673"]
[Result "1-0"]
[Round "10"]
[TimeControl "180+2"]
[Date "2023.07.04"]
[WhiteClock "0:00:05"]
[BlackClock "0:00:00"]
[Board "50"]

1. e4 {[%clk 0:03:00]}  c5 {[%clk 0:02:59]} 2. Nc3 {[%clk 0:03:01]}  Nc6 {[%clk 0:02:55]} 3. g3 {[%clk 0:03:02]}  g6 {[%clk 0:02:54]} 4. Bg2 {[%clk 0:03:02]}  Bg7 {[%clk 0:02:54]} 5. d3 {[%clk 0:03:02]}  d6 {[%clk 0:02:51]} 6. f4 {[%clk 0:03:02]}  h5 {[%clk 0:02:47]} 7. h4 {[%clk 0:03:01]}  Nh6 {[%clk 0:02:46]} 8. Nf3 {[%clk 0:03:01]}  O-O {[%clk 0:02:46]} 9. O-O {[%clk 0:03:00]}  f5 {[%clk 0:02:45]} 10. Rb1 {[%clk 0:02:56]}  Nd4 {[%clk 0:02:45]} 11. Nxd4 {[%clk 0:02:54]}  Bxd4+ {[%clk 0:02:45]} 12. Kh1 {[%clk 0:02:52]}  Ng4 {[%clk 0:02:41]} 13. Qe1 {[%clk 0:02:50]}  Bg7 {[%clk 0:02:36]} 14. Nd5 {[%clk 0:02:47]}  e6 {[%clk 0:02:33]} 15. Ne3 {[%clk 0:02:46]}  Rb8 {[%clk 0:02:29]} 16. Nxg4 {[%clk 0:02:46]}  hxg4 {[%clk 0:02:30]} 17. Bd2 {[%clk 0:02:45]}  b5 {[%clk 0:02:29]} 18. Bc3 {[%clk 0:02:44]}  b4 {[%clk 0:02:28]} 19. Bxg7 {[%clk 0:02:44]}  Kxg7 {[%clk 0:02:29]} 20. Qd2 {[%clk 0:02:43]}  Rh8 {[%clk 0:02:28]} 21. c3 {[%clk 0:02:42]}  a5 {[%clk 0:02:27]} 22. Kg1 {[%clk 0:02:38]}  Bd7 {[%clk 0:02:26]} 23. d4 {[%clk 0:02:38]}  c4 {[%clk 0:02:25]} 24. Rfe1 {[%clk 0:02:29]}  Qf6 {[%clk 0:02:12]} 25. e5 {[%clk 0:02:27]}  dxe5 {[%clk 0:02:07]} 26. Rxe5 {[%clk 0:02:24]}  bxc3 {[%clk 0:01:54]} 27. Qxc3 {[%clk 0:02:24]}  Bb5 {[%clk 0:01:50]} 28. Rbe1 {[%clk 0:02:23]}  Bd7 {[%clk 0:01:41]} 29. d5 {[%clk 0:02:22]}  Rhe8 {[%clk 0:01:31]} 30. Qxc4 {[%clk 0:02:19]}  Rbc8 {[%clk 0:01:20]} 31. Qd4 {[%clk 0:02:15]}  Kh6 {[%clk 0:01:11]} 32. Kh2 {[%clk 0:02:03]}  Rc2 {[%clk 0:01:07]} 33. Qb6 {[%clk 0:01:54]}  Kg7 {[%clk 0:00:51]} 34. Qxa5 {[%clk 0:01:45]}  Rxb2 {[%clk 0:00:48]} 35. Qa7 {[%clk 0:01:42]}  Re7 {[%clk 0:00:45]} 36. Qa3 {[%clk 0:01:36]}  Rd2 {[%clk 0:00:33]} 37. Qe3 {[%clk 0:01:27]}  Rxa2 {[%clk 0:00:32]} 38. dxe6 {[%clk 0:01:14]}  Bc6 {[%clk 0:00:31]} 39. Re2 {[%clk 0:01:14]}  Rxe2 {[%clk 0:00:26]} 40. Qxe2 {[%clk 0:01:14]}  Be8 {[%clk 0:00:22]} 41. Bd5 {[%clk 0:01:09]}  Rc7 {[%clk 0:00:20]} 42. Qd3 {[%clk 0:01:07]}  Qd8 {[%clk 0:00:19]} 43. h5 {[%clk 0:00:48]}  Rc1 {[%clk 0:00:18]} 44. Qd4 {[%clk 0:00:42]}  Kh6 {[%clk 0:00:17]} 45. e7 {[%clk 0:00:38]}  Qa5 {[%clk 0:00:17]} 46. Re2 {[%clk 0:00:36]}  Kh7 {[%clk 0:00:10]} 47. hxg6+ {[%clk 0:00:36]}  Kxg6 {[%clk 0:00:09]} 48. Re6+ {[%clk 0:00:22]}  Kh7 {[%clk 0:00:08]} 49. Re2 {[%clk 0:00:15]}  Qa1 {[%clk 0:00:08]} 50. Qb6 {[%clk 0:00:07]}  Qg7 {[%clk 0:00:06]} 51. Re6 {[%clk 0:00:04]}  Bg6 {[%clk 0:00:05]} 52. Rxg6 {[%clk 0:00:03]}  Rc2+ {[%clk 0:00:05]} 53. Bg2 {[%clk 0:00:03]}  Qxe7 {[%clk 0:00:02]} 54. Rh6+ {[%clk 0:00:03]}  Kg8 {[%clk 0:00:02]} 55. Qg6+ {[%clk 0:00:04]}  Qg7 {[%clk 0:00:03]} 56. Qxg7+ {[%clk 0:00:04]}  Kxg7 {[%clk 0:00:04]} 57. Rd6 {[%clk 0:00:05]}  Rc5 {[%clk 0:00:04]} 58. Kg1 {[%clk 0:00:05]}  Ra5 {[%clk 0:00:04]} 59. Kf2 {[%clk 0:00:05]}  Rc5 {[%clk 0:00:04]} 60. Ke3 {[%clk 0:00:05]}  Rc3+ {[%clk 0:00:04]} 61. Rd3 {[%clk 0:00:05]}  Rc4 {[%clk 0:00:04]} 62. Bd5 {[%clk 0:00:06]}  Rb4 {[%clk 0:00:04]} 63. Bb3 {[%clk 0:00:06]}  Kf6 {[%clk 0:00:04]} 64. Rc3 {[%clk 0:00:06]}  Re4+ {[%clk 0:00:04]} 65. Kd3 {[%clk 0:00:06]}  Re1 {[%clk 0:00:04]} 66. Kc4 {[%clk 0:00:06]}  Re4+ {[%clk 0:00:03]} 67. Kd5 {[%clk 0:00:05]}  Re1 {[%clk 0:00:00]} 68. Bc2 {[%clk 0:00:05]} 1-0


[Site "https://www.chess.com"]

[Event "Titled Tuesday Blitz July 4 Early 2023"]
[White "Ocelak, Jakub"]
[Black "Radzhabov, Rodion"]
[WhiteFideId "23707933"]
[BlackFideId "884715"]
[WhiteElo "2477"]
[BlackElo "2668"]
[Result "0-1"]
[Round "10"]
[TimeControl "180+2"]
[Date "2023.07.04"]
[WhiteClock "0:00:00"]
[BlackClock "0:01:01"]
[Board "51"]

1. d4 {[%clk 0:03:00]}  Nf6 {[%clk 0:02:58]} 2. Nc3 {[%clk 0:03:00]}  d5 {[%clk 0:02:55]} 3. Bf4 {[%clk 0:02:58]}  a6 {[%clk 0:02:55]} 4. e3 {[%clk 0:02:58]}  c5 {[%clk 0:02:54]} 5. dxc5 {[%clk 0:02:58]}  e6 {[%clk 0:02:49]} 6. b4 {[%clk 0:02:54]}  Nc6 {[%clk 0:02:44]} 7. a3 {[%clk 0:02:54]}  e5 {[%clk 0:02:40]} 8. Bg5 {[%clk 0:02:54]}  Be6 {[%clk 0:02:31]} 9. Nf3 {[%clk 0:02:45]}  h6 {[%clk 0:02:26]} 10. Bh4 {[%clk 0:02:34]}  g5 {[%clk 0:02:05]} 11. Bg3 {[%clk 0:02:31]}  Nh5 {[%clk 0:01:57]} 12. Nxe5 {[%clk 0:02:17]}  Nxg3 {[%clk 0:01:55]} 13. Nxc6 {[%clk 0:02:17]}  bxc6 {[%clk 0:01:56]} 14. hxg3 {[%clk 0:02:16]}  Bg7 {[%clk 0:01:56]} 15. Qd2 {[%clk 0:02:12]}  d4 {[%clk 0:01:42]} 16. Ne4 {[%clk 0:01:49]}  dxe3 {[%clk 0:01:37]} 17. Qxd8+ {[%clk 0:01:40]}  Rxd8 {[%clk 0:01:36]} 18. c3 {[%clk 0:01:23]}  f5 {[%clk 0:01:31]} 19. Nd6+ {[%clk 0:01:23]}  Rxd6 {[%clk 0:01:31]} 20. cxd6 {[%clk 0:01:24]}  Bxc3+ {[%clk 0:01:31]} 21. Ke2 {[%clk 0:01:25]}  Bxa1 {[%clk 0:01:30]} 22. Kxe3 {[%clk 0:01:25]}  Bb2 {[%clk 0:01:26]} 23. Bxa6 {[%clk 0:01:09]}  Bxa3 {[%clk 0:01:25]} 24. Bb7 {[%clk 0:00:59]}  Kd7 {[%clk 0:01:19]} 25. Ra1 {[%clk 0:00:15]}  Bxb4 {[%clk 0:01:18]} 26. Ra6 {[%clk 0:00:16]}  Bd5 {[%clk 0:01:17]} 27. Ra4 {[%clk 0:00:10]}  Bc5+ {[%clk 0:01:16]} 28. Ke2 {[%clk 0:00:09]}  Kxd6 {[%clk 0:01:16]} 29. Ba6 {[%clk 0:00:09]}  Re8+ {[%clk 0:01:16]} 30. Kf1 {[%clk 0:00:08]}  Ra8 {[%clk 0:01:15]} 31. Kg1 {[%clk 0:00:07]}  Kc7 {[%clk 0:01:13]} 32. Bb5 {[%clk 0:00:01]}  cxb5 {[%clk 0:01:13]} 33. Rxa8 {[%clk 0:00:02]}  Bxa8 {[%clk 0:01:13]} 34. g4 {[%clk 0:00:03]}  fxg4 {[%clk 0:01:11]} 35. Kh2 {[%clk 0:00:01]}  Bxf2 {[%clk 0:01:09]} 36. g3 {[%clk 0:00:01]}  Be1 {[%clk 0:01:02]} 37. Kg1 {[%clk 0:00:00]}  Bxg3 {[%clk 0:01:01]} 0-1


[Site "https://www.chess.com"]

[Event "Titled Tuesday Blitz July 4 Early 2023"]
[White "Grossboss19"]
[Black "Ahmad, Khagan"]
[BlackFideId "13431552"]
[WhiteElo "2455"]
[BlackElo "2661"]
[Result "0-1"]
[Round "10"]
[TimeControl "180+2"]
[Date "2023.07.04"]
[WhiteClock "0:00:00"]
[BlackClock "0:00:17"]
[Board "52"]

1. Nf3 {[%clk 0:02:31]}  d5 {[%clk 0:02:58]} 2. d4 {[%clk 0:02:28]}  Nf6 {[%clk 0:02:49]} 3. c4 {[%clk 0:02:27]}  e6 {[%clk 0:02:48]} 4. Nc3 {[%clk 0:02:26]}  Bb4 {[%clk 0:02:47]} 5. g3 {[%clk 0:02:23]}  O-O {[%clk 0:02:44]} 6. Bg2 {[%clk 0:02:23]}  c5 {[%clk 0:02:44]} 7. O-O {[%clk 0:02:22]}  cxd4 {[%clk 0:02:39]} 8. Nxd4 {[%clk 0:02:21]}  e5 {[%clk 0:02:38]} 9. Nc2 {[%clk 0:02:18]}  Bxc3 {[%clk 0:02:30]} 10. bxc3 {[%clk 0:02:19]}  dxc4 {[%clk 0:02:26]} 11. Qxd8 {[%clk 0:02:14]}  Rxd8 {[%clk 0:02:27]} 12. Ne3 {[%clk 0:02:14]}  Nc6 {[%clk 0:02:19]} 13. Nxc4 {[%clk 0:02:13]}  Be6 {[%clk 0:02:16]} 14. Bxc6 {[%clk 0:02:08]}  Bxc4 {[%clk 0:02:16]} 15. Bxb7 {[%clk 0:02:08]}  Rab8 {[%clk 0:02:16]} 16. Bg2 {[%clk 0:01:56]}  Bxe2 {[%clk 0:02:13]} 17. Re1 {[%clk 0:01:56]}  Bc4 {[%clk 0:02:06]} 18. Bg5 {[%clk 0:01:46]}  h6 {[%clk 0:01:51]} 19. Be3 {[%clk 0:01:38]}  Ng4 {[%clk 0:01:41]} 20. Bxa7 {[%clk 0:01:33]}  Rb2 {[%clk 0:01:32]} 21. h3 {[%clk 0:01:29]}  Nxf2 {[%clk 0:01:16]} 22. Bxf2 {[%clk 0:01:00]}  Rdd2 {[%clk 0:01:15]} 23. Rf1 {[%clk 0:00:55]}  Bxf1 {[%clk 0:01:14]} 24. Rxf1 {[%clk 0:00:55]}  Rxa2 {[%clk 0:01:14]} 25. c4 {[%clk 0:00:54]}  Rac2 {[%clk 0:01:08]} 26. Bd5 {[%clk 0:00:50]}  e4 {[%clk 0:01:08]} 27. Bxe4 {[%clk 0:00:37]}  Rxc4 {[%clk 0:01:08]} 28. Re1 {[%clk 0:00:37]}  g6 {[%clk 0:01:04]} 29. Kf1 {[%clk 0:00:29]}  Ra4 {[%clk 0:00:57]} 30. Bf3 {[%clk 0:00:27]}  Raa2 {[%clk 0:00:52]} 31. Re2 {[%clk 0:00:26]}  Rxe2 {[%clk 0:00:49]} 32. Bxe2 {[%clk 0:00:26]}  h5 {[%clk 0:00:50]} 33. Bf3 {[%clk 0:00:21]}  Kg7 {[%clk 0:00:47]} 34. Bd4+ {[%clk 0:00:19]}  Kh6 {[%clk 0:00:47]} 35. Be3+ {[%clk 0:00:19]}  g5 {[%clk 0:00:48]} 36. h4 {[%clk 0:00:18]}  f6 {[%clk 0:00:48]} 37. Be2 {[%clk 0:00:17]}  Ra3 {[%clk 0:00:46]} 38. Kf2 {[%clk 0:00:17]}  Kg6 {[%clk 0:00:46]} 39. hxg5 {[%clk 0:00:12]}  fxg5 {[%clk 0:00:47]} 40. Bc5 {[%clk 0:00:12]}  Rc3 {[%clk 0:00:44]} 41. Bd4 {[%clk 0:00:12]}  Rb3 {[%clk 0:00:44]} 42. Bc4 {[%clk 0:00:09]}  Rb4 {[%clk 0:00:45]} 43. Bd3+ {[%clk 0:00:09]}  Kh6 {[%clk 0:00:44]} 44. Bc5 {[%clk 0:00:08]}  Rb2+ {[%clk 0:00:44]} 45. Kf3 {[%clk 0:00:08]}  Rb8 {[%clk 0:00:42]} 46. Bf5 {[%clk 0:00:04]}  Kg7 {[%clk 0:00:38]} 47. Bd4+ {[%clk 0:00:04]}  Kh6 {[%clk 0:00:38]} 48. Ke4 {[%clk 0:00:02]}  Re8+ {[%clk 0:00:34]} 49. Be5 {[%clk 0:00:02]}  Ra8 {[%clk 0:00:27]} 50. Kd5 {[%clk 0:00:02]}  Ra5+ {[%clk 0:00:27]} 51. Ke6 {[%clk 0:00:02]}  Ra6+ {[%clk 0:00:25]} 52. Kf7 {[%clk 0:00:02]}  Ra7+ {[%clk 0:00:24]} 53. Kg8 {[%clk 0:00:01]}  Ra8+ {[%clk 0:00:20]} 54. Kf7 {[%clk 0:00:02]}  Ra7+ {[%clk 0:00:21]} 55. Ke6 {[%clk 0:00:03]}  Ra6+ {[%clk 0:00:21]} 56. Kd5 {[%clk 0:00:04]}  Ra5+ {[%clk 0:00:21]} 57. Ke6 {[%clk 0:00:04]}  g4 {[%clk 0:00:21]} 58. Bf4+ {[%clk 0:00:04]}  Kg7 {[%clk 0:00:21]} 59. Be5+ {[%clk 0:00:05]}  Kh6 {[%clk 0:00:22]} 60. Bf4+ {[%clk 0:00:05]}  Kg7 {[%clk 0:00:23]} 61. Be5+ {[%clk 0:00:05]}  Kg8 {[%clk 0:00:22]} 62. Kf6 {[%clk 0:00:05]}  Ra6+ {[%clk 0:00:22]} 63. Be6+ {[%clk 0:00:05]}  Kh7 {[%clk 0:00:23]} 64. Kf5 {[%clk 0:00:05]}  Ra5 {[%clk 0:00:22]} 65. Kf4 {[%clk 0:00:04]}  Kg6 {[%clk 0:00:21]} 66. Bf5+ {[%clk 0:00:04]}  Kf7 {[%clk 0:00:22]} 67. Bd6 {[%clk 0:00:04]}  Rd5 {[%clk 0:00:22]} 68. Be5 {[%clk 0:00:03]}  Ra5 {[%clk 0:00:22]} 69. Bd3 {[%clk 0:00:03]}  Ra4+ {[%clk 0:00:19]} 70. Kf5 {[%clk 0:00:03]}  Ra3 {[%clk 0:00:19]} 71. Bc4+ {[%clk 0:00:03]}  Ke7 {[%clk 0:00:19]} 72. Bf6+ {[%clk 0:00:03]}  Kd6 {[%clk 0:00:18]} 73. Bh4 {[%clk 0:00:03]}  Ra5+ {[%clk 0:00:18]} 74. Kg6 {[%clk 0:00:03]}  Kc5 {[%clk 0:00:16]} 75. Bf7 {[%clk 0:00:03]}  Kd4 {[%clk 0:00:16]} 76. Kh6 {[%clk 0:00:03]}  Ke4 {[%clk 0:00:15]} 77. Bxh5 {[%clk 0:00:03]}  Kf3 {[%clk 0:00:16]} 78. Bf7 {[%clk 0:00:02]}  Ra7 {[%clk 0:00:16]} 79. Kg6 {[%clk 0:00:01]}  Ra6+ {[%clk 0:00:16]} 80. Kf5 {[%clk 0:00:01]}  Ra5+ {[%clk 0:00:17]} 81. Kf6 {[%clk 0:00:01]}  Rb5 {[%clk 0:00:17]} 82. Be6 {[%clk 0:00:00]}  Rh5 {[%clk 0:00:17]} 0-1


[Site "https://www.chess.com"]

[Event "Titled Tuesday Blitz July 4 Early 2023"]
[White "Molina, Roberto Junio Brito"]
[Black "Osmak, Yuliia"]
[WhiteFideId "2109450"]
[BlackFideId "14101602"]
[WhiteElo "2832"]
[BlackElo "2540"]
[Result "1-0"]
[Round "10"]
[TimeControl "180+2"]
[Date "2023.07.04"]
[WhiteClock "0:00:30"]
[BlackClock "0:00:19"]
[Board "55"]

1. e4 {[%clk 0:03:00]}  e6 {[%clk 0:02:58]} 2. d4 {[%clk 0:03:00]}  d5 {[%clk 0:02:59]} 3. Nd2 {[%clk 0:03:00]}  Nc6 {[%clk 0:02:57]} 4. Ngf3 {[%clk 0:03:00]}  Nf6 {[%clk 0:02:57]} 5. e5 {[%clk 0:03:00]}  Nd7 {[%clk 0:02:55]} 6. Bb5 {[%clk 0:02:59]}  a6 {[%clk 0:02:54]} 7. Ba4 {[%clk 0:02:54]}  Nb6 {[%clk 0:02:48]} 8. Bxc6+ {[%clk 0:02:45]}  bxc6 {[%clk 0:02:49]} 9. Nb3 {[%clk 0:02:39]}  a5 {[%clk 0:02:49]} 10. Bg5 {[%clk 0:02:36]}  f6 {[%clk 0:02:40]} 11. exf6 {[%clk 0:02:35]}  gxf6 {[%clk 0:02:41]} 12. Be3 {[%clk 0:02:34]}  a4 {[%clk 0:02:39]} 13. Nc1 {[%clk 0:02:34]}  Nc4 {[%clk 0:02:37]} 14. Nd3 {[%clk 0:02:32]}  a3 {[%clk 0:02:12]} 15. b3 {[%clk 0:02:31]}  Nb2 {[%clk 0:02:12]} 16. Qd2 {[%clk 0:02:26]}  Nxd3+ {[%clk 0:02:11]} 17. cxd3 {[%clk 0:02:21]}  Bd6 {[%clk 0:01:58]} 18. Bh6 {[%clk 0:02:10]}  Qe7 {[%clk 0:01:53]} 19. O-O {[%clk 0:02:10]}  Rg8 {[%clk 0:01:52]} 20. Rac1 {[%clk 0:02:06]}  Bd7 {[%clk 0:01:51]} 21. Bf4 {[%clk 0:02:04]}  Rg6 {[%clk 0:01:47]} 22. Qe3 {[%clk 0:01:58]}  Kf7 {[%clk 0:01:46]} 23. Bxd6 {[%clk 0:01:56]}  cxd6 {[%clk 0:01:46]} 24. Nh4 {[%clk 0:01:46]}  Rg5 {[%clk 0:01:39]} 25. f4 {[%clk 0:01:42]}  Rg4 {[%clk 0:01:37]} 26. g3 {[%clk 0:01:37]}  Rag8 {[%clk 0:01:36]} 27. Nf3 {[%clk 0:01:34]}  Kg7 {[%clk 0:01:31]} 28. Kf2 {[%clk 0:01:30]}  Kh8 {[%clk 0:01:30]} 29. Rg1 {[%clk 0:01:28]}  Qg7 {[%clk 0:01:09]} 30. Rg2 {[%clk 0:01:14]}  Qh6 {[%clk 0:00:59]} 31. Rh1 {[%clk 0:01:11]}  Qh3 {[%clk 0:00:52]} 32. Ng1 {[%clk 0:01:08]}  Qh5 {[%clk 0:00:43]} 33. h3 {[%clk 0:01:05]}  R4g7 {[%clk 0:00:36]} 34. Nf3 {[%clk 0:00:58]}  Rf8 {[%clk 0:00:29]} 35. g4 {[%clk 0:00:56]}  Qh6 {[%clk 0:00:29]} 36. h4 {[%clk 0:00:51]}  e5 {[%clk 0:00:21]} 37. fxe5 {[%clk 0:00:31]}  fxe5 {[%clk 0:00:19]} 38. Qxh6 {[%clk 0:00:30]} 1-0


[Site "https://www.chess.com"]

[Event "Titled Tuesday Blitz July 4 Early 2023"]
[White "Demin, Vladimir"]
[Black "Mikhailovsky, Vladimir"]
[WhiteFideId "4167457"]
[BlackFideId "34105414"]
[WhiteElo "2537"]
[BlackElo "2795"]
[Result "1-0"]
[Round "10"]
[TimeControl "180+2"]
[Date "2023.07.04"]
[WhiteClock "0:00:37"]
[BlackClock "0:00:00"]
[Board "57"]

1. d4 {[%clk 0:03:00]}  d5 {[%clk 0:02:54]} 2. Nc3 {[%clk 0:03:01]}  Nf6 {[%clk 0:02:53]} 3. Bf4 {[%clk 0:03:01]}  c5 {[%clk 0:02:54]} 4. e4 {[%clk 0:03:01]}  dxe4 {[%clk 0:02:50]} 5. dxc5 {[%clk 0:02:59]}  Qa5 {[%clk 0:02:47]} 6. Qd2 {[%clk 0:02:59]}  g6 {[%clk 0:02:41]} 7. O-O-O {[%clk 0:02:59]}  Bg7 {[%clk 0:02:42]} 8. Bxb8 {[%clk 0:02:19]}  O-O {[%clk 0:01:31]} 9. Be5 {[%clk 0:02:17]}  Be6 {[%clk 0:01:29]} 10. a3 {[%clk 0:01:57]}  Qxc5 {[%clk 0:01:26]} 11. Qd4 {[%clk 0:01:52]}  Qa5 {[%clk 0:01:24]} 12. f4 {[%clk 0:01:35]}  Rad8 {[%clk 0:01:18]} 13. Qb4 {[%clk 0:01:35]}  Rxd1+ {[%clk 0:01:16]} 14. Nxd1 {[%clk 0:01:36]}  Qd8 {[%clk 0:01:15]} 15. Nc3 {[%clk 0:01:26]}  e3 {[%clk 0:01:04]} 16. Nf3 {[%clk 0:01:20]}  Bh6 {[%clk 0:00:32]} 17. Be2 {[%clk 0:01:14]}  Nd5 {[%clk 0:00:32]} 18. Qd4 {[%clk 0:01:08]}  f6 {[%clk 0:00:09]} 19. Bc4 {[%clk 0:00:52]}  fxe5 {[%clk 0:00:05]} 20. Qxe5 {[%clk 0:00:51]}  e2 {[%clk 0:00:02]} 21. Qxe6+ {[%clk 0:00:51]}  Kh8 {[%clk 0:00:02]} 22. Qe5+ {[%clk 0:00:43]}  Bg7 {[%clk 0:00:02]} 23. Qxd5 {[%clk 0:00:42]}  Qb6 {[%clk 0:00:00]} 24. Re1 {[%clk 0:00:37]} 1-0


[Site "https://www.chess.com"]